fUST/lending_fUST_20250825
["ID","MTS","AMOUNT","RATE_DAILY","PERIOD"]
[381246254,1756108251402,-480.0,0.00041095,30]
[381246256,1756108251412,-480.0,0.00041095,30]
[381246258,1756108251421,-480.0,0.00041095,30]
[381246260,1756108251430,-480.0,0.00041095,30]
[381246261,1756108251439,-635.14,0.00041095,30]
[381246263,1756108251448,-480.0,0.00041095,30]
[381246265,1756108251457,-480.0,0.00041095,30]
[381246268,1756108251467,-1678.54,0.00041095,30]
[381246270,1756108251476,-480.0,0.00041095,30]
[381246272,1756108251486,-683.19,0.00041095,30]
[381246274,1756108251496,-766.09,0.00041095,30]
[381246275,1756108251505,-480.0,0.00041095,30]
[381246277,1756108251514,-480.0,0.00041095,30]
[381246279,1756108251523,-1415.38,0.00041095,30]
[381246281,1756108251533,-1000.66,0.00041095,30]
[381246283,1756108251542,-480.0,0.00041095,30]
[381246285,1756108251552,-480.0,0.00041095,30]
[381246287,1756108251561,-480.0,0.00041095,30]
[381246289,1756108251572,-480.0,0.00041095,30]
[381246291,1756108251581,-480.0,0.00041095,30]
[381246293,1756108251591,-480.0,0.00041095,30]
[381246295,1756108251600,-480.0,0.00041095,30]
[381246297,1756108251609,-480.0,0.00041095,30]
[381246299,1756108251618,-480.0,0.00041095,30]
[381246301,1756108251627,-480.0,0.00041095,30]
[381246303,1756108251637,-480.0,0.00041095,30]
[381246305,1756108251646,-1044.08,0.00041095,30]
[381246307,1756108251655,-480.0,0.00041095,30]
[381246309,1756108251665,-480.0,0.00041095,30]
[381246311,1756108251674,-480.0,0.00041095,30]
[381246313,1756108251685,-480.0,0.00041095,30]
[381246315,1756108251697,-480.0,0.00041095,30]
[381246317,1756108251707,-480.0,0.00041095,30]
[381246319,1756108251716,-480.0,0.00041095,30]
[381246321,1756108251725,-480.0,0.00041095,30]
[381246323,1756108251735,-527.03,0.00041095,30]
[381246325,1756108251745,-638.76,0.00041095,30]
[381246327,1756108251754,-3650.06,0.00041095,30]
[381246329,1756108251763,-771.76,0.00041095,30]
[381246331,1756108251774,-1017.76,0.00041095,30]
[381246333,1756108251785,-596.97,0.00041095,30]
[381246335,1756108251794,-1830.47,0.00041095,30]
[381246337,1756108251804,-480.0,0.00041095,30]
[381246339,1756108251814,-692.84,0.00041095,30]
[381246341,1756108251823,-480.0,0.00041095,30]
[381246343,1756108251832,-318.8506167,0.00041095,30]
[381246345,1756108251841,-480.0,0.00041095,30]
[381246347,1756108251850,-408.80838135,0.00041095,30]
[381246349,1756108251860,-480.0,0.00041095,30]
[381246351,1756108251869,-480.0,0.00041095,30]
[381246353,1756108251879,-480.0,0.00041095,30]
[381246355,1756108251888,-155.02128233,0.00041095,30]
[381246357,1756108251897,-15112.0,0.00041095,30]
[381246359,1756108251906,-441.93486645,0.00041095,30]
[381246361,1756108251915,-480.0,0.00041095,30]
[381246363,1756108251925,-480.0,0.00041095,30]
[381246365,1756108251934,-480.0,0.00041095,30]
[381246367,1756108251943,-480.0,0.00041095,30]
[381246369,1756108251952,-480.0,0.00041095,30]
[381246371,1756108251962,-1410.75,0.00041095,30]
[381246373,1756108251971,-480.0,0.00041095,30]
[381246375,1756108251980,-480.0,0.00041095,30]
[381246377,1756108251989,-480.0,0.00041095,30]
[381246379,1756108251999,-480.0,0.00041095,30]
[381246381,1756108252008,-480.0,0.00041095,30]
[381246383,1756108252017,-500.0,0.00041095,30]
[381246385,1756108252027,-500.0,0.00041095,30]
[381246387,1756108252037,-500.0,0.00041095,30]
[381246389,1756108252047,-500.0,0.00041095,30]
[381246391,1756108252056,-500.0,0.00041095,30]
[381246393,1756108252066,-500.0,0.00041095,30]
[381246395,1756108252076,-500.0,0.00041095,30]
[381246397,1756108252085,-500.0,0.00041095,30]
[381246399,1756108252095,-480.0,0.00041095,30]
[381246401,1756108252104,-480.0,0.00041095,2]
[381246403,1756108252116,-480.0,0.00041095,30]
[381246405,1756108252126,-500.0,0.00041095,30]
[381246407,1756108252136,-500.0,0.00041095,30]
[381246409,1756108252146,-500.0,0.00041095,30]
[381246411,1756108252156,-619.24119866,0.00041095,30]
[381246413,1756108252165,-480.0,0.00041095,30]
[381246415,1756108252175,-507.19824317,0.00041095,30]
[381246417,1756108252184,-480.0,0.00041095,2]
[381246419,1756108252194,-480.0,0.00041095,30]
[381246421,1756108252203,-480.0,0.00041095,30]
[381246423,1756108252213,-573.85,0.00041095,30]
[381246425,1756108252223,-480.0,0.00041095,30]
[381246427,1756108252232,-480.0,0.00041095,30]
[381246429,1756108252242,-480.0,0.00041095,30]
[381246431,1756108252251,-480.0,0.00041095,30]
[381246433,1756108252261,-480.0,0.00041095,30]
[381246435,1756108252271,-609.53,0.00041095,30]
[381246437,1756108252280,-480.0,0.00041095,30]
[381246439,1756108252290,-480.0,0.00041095,30]
[381246440,1756108252300,-1000.0,0.00041095,30]
[381246442,1756108252310,-480.0,0.00041095,30]
[381246444,1756108252319,-1388.6,0.00041095,30]
[381246446,1756108252329,-480.0,0.00041095,30]
[381246448,1756108252339,-611.00944837,0.00041095,30]
[381246450,1756108252348,-1896.62,0.00041095,30]
[381246452,1756108252357,-1105.24,0.00041095,30]
[381246454,1756108252367,-480.0,0.00041095,30]
[381246456,1756108252376,-480.0,0.00041095,30]
[381246458,1756108252386,-790.7,0.00041095,30]
[381246460,1756108252396,-480.0,0.00041095,30]
[381246462,1756108252405,-1497.52,0.00041095,30]
[381246464,1756108252415,-1357.43,0.00041095,30]
[381246466,1756108252425,-480.0,0.00041095,30]
[381246468,1756108252434,-596.95,0.00041095,30]
[381246470,1756108252444,-480.0,0.00041095,30]
[381246472,1756108252453,-480.93334527,0.00041095,30]
[381246474,1756108252463,-1412.42,0.00041095,30]
[381246476,1756108252472,-480.0,0.00041095,30]
[381246478,1756108252482,-480.0,0.00041095,30]
[381246480,1756108252491,-480.0,0.00041095,30]
[381246482,1756108252501,-480.0,0.00041095,30]
[381246484,1756108252510,-235.31036443,0.00041095,30]
[381246486,1756108252519,-480.0,0.00041095,30]
[381246488,1756108252529,-1700.64,0.00041095,30]
[381246490,1756108252538,-682.89,0.00041095,30]
[381246492,1756108252547,-480.0,0.00041095,30]
[381246494,1756108252557,-1028.95,0.00041095,30]
[381246496,1756108252566,-480.0,0.00041095,30]
[381246498,1756108252576,-480.0,0.00041095,30]
[381246500,1756108252585,-1707.66,0.00041095,30]
[381246502,1756108252595,-480.0,0.00041095,30]
[381246504,1756108252604,-480.0,0.00041095,30]
[381246506,1756108252613,-379.20404015,0.00041095,30]
[381246508,1756108252623,-568.84344379,0.00041095,30]
[381246510,1756108252633,-480.0,0.00041095,30]
[381246512,1756108252642,-480.0,0.00041095,30]
[381246514,1756108252651,-480.0,0.00041095,30]
[381246516,1756108252660,-480.0,0.00041095,30]
[381246518,1756108252669,-480.0,0.00041095,30]
[381246520,1756108252679,-480.0,0.00041095,30]
[381246522,1756108252689,-480.0,0.00041095,30]
[381246524,1756108252702,-480.0,0.00041095,30]
[381246526,1756108252711,-480.0,0.00041095,30]
[381246528,1756108252720,-480.0,0.00041095,30]
[381246530,1756108252730,-698.25,0.00041095,30]
[381246532,1756108252739,-480.0,0.00041095,30]
[381246534,1756108252749,-509.16,0.00041095,30]
[381246536,1756108252758,-2159.47,0.00041095,30]
[381246538,1756108252768,-946.1,0.00041095,30]
[381246540,1756108252778,-480.0,0.00041095,30]
[381246542,1756108252787,-480.0,0.00041095,30]
[381246544,1756108252796,-480.0,0.00041095,30]
[381246546,1756108252805,-480.13199113,0.00041095,30]
[381246548,1756108252814,-480.0,0.00041095,30]
[381246550,1756108252823,-480.0,0.00041095,30]
[381246552,1756108252833,-480.0,0.00041095,30]
[381246554,1756108252842,-480.0,0.00041095,30]
[381246556,1756108252851,-480.0,0.00041095,30]
[381246558,1756108252861,-2261.22,0.00041095,30]
[381246560,1756108252871,-480.0,0.00041095,30]
[381246562,1756108252880,-654.39,0.00041095,30]
[381246564,1756108252889,-480.0,0.00041095,30]
[381246566,1756108252899,-480.0,0.00041095,30]
[381246568,1756108252908,-480.0,0.00041095,30]
[381246570,1756108252917,-809.4,0.00041095,30]
[381246572,1756108252926,-480.0,0.00041095,30]
[381246574,1756108252935,-480.0,0.00041095,30]
[381246576,1756108252945,-2998.15,0.00041095,30]
[381246578,1756108252955,-995.8,0.00041095,30]
[381246580,1756108252964,-480.0,0.00041095,30]
[381246582,1756108252974,-480.0,0.00041095,30]
[381246584,1756108252983,-540.12,0.00041095,30]
[381246586,1756108252992,-460.29294089,0.00041095,30]
[381246588,1756108253001,-549.96,0.00041095,30]
[381246590,1756108253011,-625.63,0.00041095,30]
[381246592,1756108253020,-480.0,0.00041095,30]
[381246594,1756108253029,-480.0,0.00041095,30]
[381246596,1756108253038,-480.0,0.00041095,30]
[381246598,1756108253047,-1350.25,0.00041095,30]
[381246600,1756108253057,-679.78,0.00041095,30]
[381246602,1756108253066,-480.0,0.00041095,30]
[381246604,1756108253075,-480.0,0.00041095,30]
[381246606,1756108253084,-2061.16,0.00041095,30]
[381246608,1756108253094,-480.0,0.00041095,30]
[381246610,1756108253103,-542.08118951,0.00041095,30]
[381246612,1756108253112,-1700.65,0.00041095,30]
[381246614,1756108253122,-6206.80592949,0.00041095,30]
[381246696,1756108254308,-250.0,0.00035966,2]
[381246698,1756108254317,-201.89770887,0.00035966,2]
[381246747,1756108254787,-550.932757,0.00035345,10]
[381253740,1756108424285,158.914961,0.00013699,2]
[381253741,1756108424492,158.914961,0.00021404,2]
[381253755,1756108478052,231.11001588,0.000199,2]
[381253801,1756108662948,229.95446579,0.000199,2]
[381253823,1756108874460,221.76548849,0.000199,2]
[381253852,1756109067059,221.32195751,0.000199,2]
[381253881,1756109266358,207.14938626,0.000199,2]
[381253946,1756109433928,-207.14938626,0.00028245,9]
[381253948,1756109433939,-158.914961,0.0002911,2]
[381253949,1756109433948,-90.96565274,0.00030065,120]
[381253952,1756109433961,-109.03434726,0.00030065,120]
[381253954,1756109433972,-330.53065274,0.00033,30]
[381254037,1756109436678,11962.0,0.000195,2]
[381254073,1756109437881,-3655.37151599,0.00033,30]
[381254074,1756109437892,-353.96010804,0.00033,30]
[381254075,1756109437904,-2137.88437654,0.00033,30]
[381254076,1756109437913,-253.5432883,0.00035925,2]
[381254077,1756109437923,-503.52740183,0.00036314,5]
[381254078,1756109437933,-207.14938626,0.0003659,27]
[381254079,1756109437943,-158.914961,0.00036815,2]
[381254080,1756109437952,-400.0,0.000369,3]
[381254082,1756109437962,-78.99631892,0.00037233,2]
[381254502,1756109443344,-137.0440261,0.00037233,2]
[381254504,1756109443354,-362.9559739,0.00037239,2]
[381254507,1756109443365,-7216.3381292,0.00037239,2]
[381254509,1756109443374,-3930.80467637,0.00037777,10]
[381254511,1756109443388,-3113.1572335,0.00037777,10]
[381254516,1756109443426,-40000.0,0.00037777,10]
[381254518,1756109443437,-146500.0003,0.00037777,10]
[381254820,1756109446657,-3303.20686465,0.00037777,10]
[381254822,1756109446669,-1313.36808248,0.00037777,10]
[381254825,1756109446681,-15564.7322213,0.00037777,10]
[381254827,1756109446693,-4600.00000001,0.00037777,10]
[381255470,1756109454637,211.60765533,0.000199,2]
[381255490,1756109454819,211.60765533,0.00024452,2]
[381256960,1756109470643,159.227022,0.00013699,2]
[381256968,1756109470717,159.227022,0.00023182,2]
[381261094,1756109609723,161.1656981,0.00023,2]
[381261102,1756109654804,200.49636106,0.000199,2]
[381261103,1756109654968,200.49636098,0.00023238,2]
[381261104,1756109656065,5000.0,0.000255,2]
[381261107,1756109671759,364.29330539,0.000255,2]
[381261130,1756109849529,200.49636098,0.000199,2]
[381261131,1756109849659,200.49636098,0.00023752,2]
[381261139,1756110036037,1000.0,0.00027,120]
[381261141,1756110044431,201.47775743,0.000199,2]
[381261142,1756110044618,201.47775741,0.00024452,2]
[381261160,1756110242645,201.9480104,0.000199,2]
[381261161,1756110242751,201.94801039,0.00024452,2]
[381261182,1756110419118,-189.95203211,0.00030291,120]
[381261183,1756110421148,217.91142066,0.000199,2]
[381261184,1756110421256,217.91142061,0.00024907,2]
[381261195,1756110473352,20269.95229628,0.00018,2]
[381261204,1756110527779,11686.96718938,0.0002465,2]
[381261211,1756110595529,159.545874,0.00013699,2]
[381261212,1756110595719,159.545874,0.00023973,2]
[381261216,1756110618685,217.66929688,0.000199,2]
[381261241,1756110632154,-217.6692968,0.00026159,4]
[381261242,1756110632165,-10.04796789,0.00030291,120]
[381261244,1756110632174,-287.93292259,0.00030707,2]
[381261246,1756110632184,-387.13000025,0.00030807,4]
[381261248,1756110632193,-300.0,0.00030811,2]
[381261249,1756110632203,-173.50618483,0.00030812,2]
[381261250,1756110632212,-500.0,0.00030812,2]
[381261251,1756110632222,-500.0,0.00030812,2]
[381261252,1756110632231,-500.0,0.00030812,2]
[381261253,1756110632240,-500.0,0.00030812,2]
[381261254,1756110632249,-195.91010943,0.00030812,2]
[381261255,1756110632259,-500.0,0.00030812,2]
[381261256,1756110632268,-347.63345757,0.00030812,2]
[381261257,1756110632277,-500.0,0.00030812,2]
[381261258,1756110632287,-500.0,0.00030812,2]
[381261259,1756110632296,-500.0,0.00030812,2]
[381261260,1756110632311,-345.72578574,0.00030812,2]
[381261261,1756110632320,-500.0,0.00030812,2]
[381261262,1756110632329,-500.0,0.00030812,2]
[381261263,1756110632338,-500.0,0.00030812,2]
[381261264,1756110632348,-402.90461502,0.00030812,2]
[381261265,1756110632358,-500.0,0.00030812,2]
[381261266,1756110632368,-500.0,0.00030812,2]
[381261267,1756110632377,-500.0,0.00030812,2]
[381261268,1756110632386,-500.0,0.00030812,2]
[381261269,1756110632395,-500.0,0.00030812,2]
[381261270,1756110632405,-500.0,0.00030812,2]
[381261271,1756110632414,-500.0,0.00030812,2]
[381261272,1756110632423,-500.0,0.00030812,2]
[381261273,1756110632433,-566.43248466,0.00030812,2]
[381261274,1756110632443,-500.0,0.00030812,2]
[381261275,1756110632452,-500.0,0.00030812,2]
[381261276,1756110632461,-500.0,0.00030812,2]
[381261277,1756110632470,-500.0,0.00030812,2]
[381261278,1756110632479,-500.0,0.00030812,2]
[381261279,1756110632488,-500.0,0.00030812,2]
[381261280,1756110632497,-500.0,0.00030812,2]
[381261281,1756110632506,-500.0,0.00030812,2]
[381261282,1756110632515,-500.0,0.00030812,2]
[381261283,1756110632525,-500.0,0.00030812,2]
[381261284,1756110632534,-500.0,0.00030812,2]
[381261285,1756110632543,-500.0,0.00030812,2]
[381261286,1756110632551,-1521.7808347,0.00030813,2]
[381261287,1756110632562,-8420.82634053,0.00030813,20]
[381261288,1756110632573,-3746.96999767,0.00030813,20]
[381261289,1756110632588,-9569.60023507,0.00030813,20]
[381261320,1756110637932,-420.224479,0.00030813,20]
[381261324,1756110637984,-552.64298588,0.00030813,20]
[381261325,1756110638094,-385.19165315,0.00030813,20]
[381261350,1756110640145,-5002.45441955,0.00030813,20]
[381261351,1756110640158,-11493.0,0.00030813,20]
[381261352,1756110640204,-42940.74639396,0.00030813,20]
[381261353,1756110640263,-192536.15194146,0.00030813,20]
[381261354,1756110640272,-313.66731382,0.00030813,2]
[381261355,1756110640281,-6318.4,0.000309,7]
[381261356,1756110640291,-1528.17,0.000309,7]
[381261357,1756110640300,-180.9,0.000309,7]
[381261358,1756110640309,-200.0,0.00032413,120]
[381261359,1756110640320,-217.6692968,0.00032418,18]
[381261360,1756110640330,-200.0,0.00032494,120]
[381261361,1756110640339,-444.7209125,0.00033319,120]
[381261362,1756110640349,-10287.85213059,0.00034078,2]
[381261386,1756110643127,-659.2907214,0.00034078,2]
[381261388,1756110643138,-713.41378201,0.00034078,2]
[381261390,1756110643147,-159.545874,0.00034247,2]
[381261392,1756110643157,-200.0,0.00036808,120]
[381261394,1756110643166,-51.98640856,0.00036953,60]
[381261397,1756110643184,-98.89655344,0.00036953,60]
[381261399,1756110643193,-529.29072822,0.00037186,2]
[381261401,1756110643202,-160.0,0.00037186,2]
[381261403,1756110643211,-168.0,0.00037457,2]
[381261405,1756110643220,-6318.4,0.000375,14]
[381261406,1756110643229,-9589.756255,0.00037568,2]
[381261408,1756110643240,-460.48247879,0.00037568,2]
[381261469,1756110646726,-814.56061231,0.00037568,2]
[381261470,1756110646738,-465.79660852,0.00037568,2]
[381261471,1756110646769,-1370.81192873,0.00037568,2]
[381261472,1756110646779,-153.706,0.00037588,49]
[381261473,1756110646789,-1528.17,0.000376,7]
[381261474,1756110646799,-216.04034502,0.00037646,2]
[381261475,1756110646808,-11725.36261324,0.00037777,10]
[381261476,1756110646820,-16299.80521158,0.00037777,10]
[381261477,1756110646832,-19180.76235329,0.00037777,10]
[381261478,1756110646844,-10121.88181537,0.00037777,10]
[381261479,1756110646855,-4564.10209538,0.00037777,10]
[381261480,1756110646867,-2090.45000001,0.00037777,10]
[381261493,1756110772543,-1737.1735404,0.00032456,2]
[381261494,1756110772658,-2462.8264596,0.00032456,2]
[381261495,1756110799308,-400.0,0.00032456,2]
[381261496,1756110805621,219.89986847,0.000199,2]
[381261507,1756110989049,219.46006874,0.000199,2]
[381261513,1756111175166,219.33104662,0.000199,2]
[381261514,1756111227551,4006.94153423,0.00024,2]
[381261516,1756111303193,183.006,0.0002527,9]
[381261517,1756111353398,218.59994312,0.000199,2]
[381261519,1756111538319,217.50694341,0.000199,2]
[381261520,1756111587143,6357.4,0.000255,2]
[381261521,1756111593320,160.201096,0.00013699,2]
[381261522,1756111593540,160.201096,0.00024907,2]
[381261524,1756111691755,24996.06051451,0.000249,120]
[381261526,1756111718036,213.17855523,0.000199,2]
[381261564,1756111832304,-707.99370992,0.000255,30]
[381261606,1756111836001,199.0,0.000254,30]
[381261624,1756111838084,-4292.00629008,0.000255,30]
[381261625,1756111838094,-500.0,0.00028,2]
[381261626,1756111838103,-253.5432883,0.00029591,2]
[381261627,1756111838112,-681.75576664,0.00029785,30]
[381261630,1756111838190,-318.24423336,0.00029785,30]
[381261632,1756111838200,-1792.1889858,0.00029951,2]
[381261634,1756111838209,-1224.58608442,0.00030817,30]
[381261865,1756111840272,-802.90198396,0.00030817,30]
[381261867,1756111840283,-1532.53994286,0.00030817,30]
[381261869,1756111840295,-277.01723563,0.00030817,30]
[381261874,1756111840330,-162.95475313,0.00030817,30]
[381261876,1756111840339,-6000.0,0.00030817,30]
[381261878,1756111840349,-417.15472785,0.00030817,30]
[381261880,1756111840362,-529.29072822,0.00030817,30]
[381261882,1756111840372,-1000.0,0.00032,30]
[381261884,1756111840382,-2000.0,0.00032273,7]
[381261886,1756111840392,-176.452201,0.00032462,2]
[381261888,1756111840401,-22328.830251,0.00032462,2]
[381261890,1756111840410,-1200.0,0.00033,30]
[381261892,1756111840419,-1200.0,0.00035,30]
[381261894,1756111840430,-168.0,0.00035756,2]
[381261896,1756111840440,-160.201096,0.00036115,2]
[381261898,1756111840449,-22328.830251,0.00036755,2]
[381261900,1756111840458,-349.83154418,0.00037177,17]
[381261902,1756111840469,-150.882962,0.00037203,60]
[381261904,1756111840479,-18655.99660141,0.00037777,10]
[381261906,1756111840492,-671.77936835,0.00037777,10]
[381261908,1756111840503,-13105.12391685,0.00037777,10]
[381261914,1756111840550,-29730.4610664,0.00037777,10]
[381262198,1756111843314,-541.555179,0.000305,3]
[381262200,1756111843324,-11620.444817,0.00037777,10]
[381262202,1756111843335,-2087.82777826,0.00037777,10]
[381262213,1756111843432,-2931.19187523,0.00037777,10]
[381262477,1756111846395,-684.77287164,0.00037777,10]
[381262486,1756111846477,-8739.49028003,0.00037777,10]
[381262488,1756111846489,-15251.63131164,0.00037777,10]
[381262491,1756111846500,-27049.93965188,0.00037777,10]
[381264818,1756112553819,160.201096,0.00013699,2]
[381264819,1756112749098,151.27311453,0.0002,2]
[381264821,1756112854275,-160.201096,0.0002911,2]
[381264822,1756112854297,-1200.0,0.00032999,3]
[381264823,1756112854318,-1200.0,0.00033,7]
[381264824,1756112854338,-1000.0,0.00033,7]
[381264825,1756112854358,-1000.0,0.00033,7]
[381264826,1756112854380,-464.17490223,0.00033,7]
[381264827,1756112978398,219.27886269,0.000199,2]
[381264853,1756113035749,-376.30788339,0.0003526,7]
[381264854,1756113035759,-2862.8264596,0.00036437,2]
[381264855,1756113035768,-9237.146998,0.00036755,2]
[381264856,1756113035777,-277.5428908,0.00036763,2]
[381264857,1756113035787,-595.01492622,0.000369,120]
[381264858,1756113035796,-5000.0,0.00037356,2]
[381264859,1756113035806,-4605.33079261,0.00037677,2]
[381264860,1756113035815,-37778.75732911,0.00037777,10]
[381264861,1756113035832,-1117.64026967,0.00037777,10]
[381264862,1756113035843,-8261.31037054,0.00037777,10]
[381264863,1756113035858,-97069.40247955,0.00037777,10]
[381264864,1756113035868,-1707.6254697,0.00037777,10]
[381264865,1756113035879,-1379.84577196,0.00037777,10]
[381264866,1756113035956,-948.29839736,0.00037777,10]
[381264875,1756113038442,-460.0,0.00036337,30]
[381264876,1756113038459,-540.0,0.00036337,30]
[381264877,1756113038473,-403.66787848,0.00037777,10]
[381264878,1756113038489,-140692.37666836,0.00037777,10]
[381264879,1756113038504,-326.0,0.00037777,14]
[381264880,1756113038519,-216.04034502,0.00037787,2]
[381264881,1756113038532,-199.0,0.000378,30]
[381264882,1756113038546,-168.0,0.00037801,2]
[381264883,1756113038560,-200.0,0.00037832,120]
[381264884,1756113038574,-400.0,0.000379,120]
[381264885,1756113038586,-199.0,0.000379,30]
[381264886,1756113038598,-183.006,0.000379,50]
[381264887,1756113038610,-164.0,0.00038,30]
[381264888,1756113038624,-500.0,0.00038225,5]
[381264889,1756113038637,-193.70286904,0.00038256,2]
[381264890,1756113038653,-150.882962,0.00038308,60]
[381264891,1756113038666,-4252.06,0.00038356,14]
[381264892,1756113038680,-153.0,0.00038356,30]
[381264893,1756113038691,-153.0,0.00038356,30]
[381264894,1756113038703,-200.0,0.00038383,120]
[381264895,1756113038717,-4252.06,0.0003863,14]
[381264896,1756113038732,-164.0,0.0003863,90]
[381264897,1756113038743,-164.8161633,0.00038685,30]
[381264898,1756113038757,-150.882962,0.00038797,20]
[381264899,1756113038769,-4252.06,0.00038904,14]
[381264900,1756113038780,-7415.65762075,0.00039,15]
[381264901,1756113038792,-160.0,0.00039166,3]
[381264902,1756113038808,-4252.06,0.00039178,14]
[381264903,1756113038820,-153.0,0.00039178,30]
[381264904,1756113038832,-153.0,0.00039178,30]
[381264905,1756113038843,-153.0,0.00039178,30]
[381264906,1756113038856,-308.6521045,0.00039178,30]
[381264907,1756113038868,-1162.2334549,0.00039178,30]
[381264908,1756113038881,-500.0,0.00039451,120]
[381264909,1756113038893,-185.35021219,0.00039451,120]
[381264910,1756113038905,-4252.06,0.00039452,14]
[381264911,1756113038917,-581.6464433,0.00039452,30]
[381264912,1756113038929,-503.57611175,0.00039476,2]
[381264913,1756113038941,-422.23742495,0.00039476,15]
[381264914,1756113038954,-500.0,0.00039476,15]
[381264915,1756113038966,-500.0,0.00039476,15]
[381264916,1756113038978,-500.0,0.00039476,15]
[381264917,1756113038990,-500.0,0.00039476,15]
[381264918,1756113039002,-500.0,0.00039476,15]
[381264920,1756113039015,-206.64324846,0.00039476,15]
[381264922,1756113039027,-151.0,0.00039477,2]
[381264924,1756113039039,-151.0,0.00039477,2]
[381264926,1756113039054,-151.0,0.00039477,2]
[381264927,1756113039066,-151.0,0.00039477,2]
[381264928,1756113039079,-151.0,0.00039477,2]
[381264929,1756113039092,-151.0,0.00039477,2]
[381264931,1756113039104,-151.0,0.00039477,2]
[381264933,1756113039117,-300.0,0.00039477,2]
[381264934,1756113039130,-229.28090829,0.00039477,2]
[381264935,1756113039142,-151.0,0.00039477,2]
[381264936,1756113039154,-500.0,0.00039477,2]
[381264938,1756113039167,-343.83051464,0.00039477,2]
[381264939,1756113039179,-500.0,0.00039477,2]
[381264940,1756113039191,-151.0,0.00039477,2]
[381264941,1756113039204,-500.0,0.00039477,2]
[381264942,1756113039217,-151.0,0.00039477,2]
[381264943,1756113039230,-500.0,0.00039477,2]
[381264944,1756113039243,-151.67306683,0.00039477,2]
[381264945,1756113039256,-500.0,0.00039477,2]
[381264946,1756113039269,-500.0,0.00039477,2]
[381264947,1756113039282,-500.0,0.00039477,2]
[381264948,1756113039294,-500.0,0.00039477,2]
[381264949,1756113039307,-500.0,0.00039477,2]
[381264950,1756113039319,-500.0,0.00039477,2]
[381264951,1756113039333,-500.0,0.00039477,2]
[381264952,1756113039345,-1118.04,0.0003948,3]
[381264953,1756113039358,-559.02,0.0003948,3]
[381264954,1756113039371,-279.51,0.0003948,3]
[381264955,1756113039384,-838.58,0.0003948,3]
[381264956,1756113039397,-2136.0484691,0.00039486,30]
[381264957,1756113039410,-500.0,0.00039489,15]
[381264958,1756113039422,-172.54913382,0.00039489,15]
[381264959,1756113039435,-405.28922726,0.00039489,15]
[381264960,1756113039447,-500.0,0.00039489,15]
[381264961,1756113039460,-500.0,0.00039489,15]
[381264962,1756113039472,-151.0,0.0003949,30]
[381264963,1756113039483,-151.0,0.0003949,30]
[381264964,1756113039496,-151.0,0.0003949,30]
[381264965,1756113039508,-151.0,0.0003949,30]
[381264966,1756113039519,-153.523334,0.0003949,30]
[381264967,1756113039531,-151.0,0.0003949,30]
[381264968,1756113039543,-151.0,0.0003949,30]
[381264969,1756113039555,-151.0,0.0003949,30]
[381264970,1756113039567,-151.0,0.0003949,14]
[381264971,1756113039578,-151.0,0.0003949,30]
[381264972,1756113039591,-151.0,0.0003949,30]
[381264973,1756113039603,-151.0,0.0003949,30]
[381264974,1756113039614,-151.0,0.0003949,30]
[381264975,1756113039626,-246.290557,0.0003949,30]
[381264976,1756113039638,-151.0,0.0003949,30]